bitfinex/quotes_BTCUSD_20220207
["timestamp","ask_amount","ask_price","bid_price","bid_amount"]
[1644193943645,3.90329627,41873.0,41870.0,0.00032731]
[1644193943842,1.530609,41871.0,41853.0,0.002]
[1644193944044,0.17927,41867.0,41853.0,0.002]
[1644193944242,0.02,41854.0,41853.0,0.002]
[1644193944445,0.0678,41854.0,41853.0,0.332609]
[1644193944642,0.0678,41854.0,41853.0,0.002]
[1644193949348,0.0678,41854.0,41846.0,0.001]
[1644193949548,0.02,41853.0,41851.0,0.00055673]
[1644193950150,0.0478,41854.0,41851.0,0.00055673]
[1644193950346,0.0478,41854.0,41852.0,0.330609]
[1644193950546,0.0478,41854.0,41852.0,0.380609]
[1644193950848,0.0478,41854.0,41853.0,0.356067]
[1644193951450,0.0678,41854.0,41853.0,0.356067]
[1644193952247,0.0678,41854.0,41853.0,0.306067]
[1644193952447,0.0678,41854.0,41852.0,0.330697]
[1644193952749,0.34161184,41861.0,41852.0,0.380697]
[1644193953001,0.0678,41861.0,41855.0,0.07509982]
[1644193953193,0.0678,41861.0,41855.0,0.12509982]
[1644193953394,0.0678,41861.0,41855.0,0.05]
[1644193953602,0.0478,41861.0,41852.0,0.05]
[1644193953795,0.0478,41861.0,41851.0,0.00047481]
[1644193953796,0.2626754,41852.0,41851.0,0.00047481]
[1644193954001,0.0478,41856.0,41854.0,6.305052]
[1644193954396,0.0478,41856.0,41854.0,6.30552678]
[1644193954799,0.0478,41856.0,41855.0,0.330697]
[1644193955897,0.0478,41856.0,41854.0,6.305052]
[1644193956739,0.35457199,41861.0,41854.0,6.305052]
[1644193956941,0.25457199,41861.0,41854.0,5.75767601]
[1644193957140,0.35457199,41861.0,41854.0,5.75767601]
[1644193957341,0.34957199,41861.0,41854.0,5.75767601]
[1644193957741,0.34957199,41861.0,41855.0,0.00053426]
[1644193958742,0.044,41860.0,41854.0,5.75767601]
[1644193958945,0.044,41860.0,41857.0,0.330697]
[1644193959149,0.1,41861.0,41857.0,0.330697]
[1644193959344,0.05,41865.0,41860.0,0.05]
[1644193959545,0.02078181,41868.0,41867.0,0.07271507]
[1644193959744,0.02078181,41868.0,41867.0,0.40341207]
[1644193959944,0.02078181,41868.0,41867.0,0.69440808]
[1644193960145,0.02078181,41868.0,41867.0,0.64440808]
[1644193960344,0.02078181,41868.0,41867.0,0.75413108]
[1644193960793,0.02078181,41868.0,41867.0,1.2309239]
[1644193960994,0.00024981,41878.0,41867.0,0.96721282]
[1644193961194,0.00078381,41879.0,41877.0,0.05]
[1644193961395,0.00024981,41878.0,41877.0,0.05]
[1644193961592,0.00051175,41879.0,41878.0,0.305149]
[1644193961796,0.00051175,41879.0,41878.0,0.355149]
[1644193961994,0.00051175,41879.0,41878.0,0.7125511]
[1644193962192,0.00051175,41879.0,41878.0,0.79440736]
[1644193962594,0.02013655,41881.0,41878.0,1.04667364]
[1644193962792,0.02013655,41881.0,41878.0,0.305149]
[1644193963192,0.25501732,41879.0,41878.0,0.305149]
[1644193963393,0.25501732,41879.0,41874.0,0.05]
[1644193963794,0.52823528,41879.0,41872.0,0.25758738]
[1644193963994,0.57823528,41879.0,41868.0,0.00032678]
[1644193964243,0.2486428,41871.0,41868.0,0.00032678]
[1644193965043,0.2486428,41871.0,41866.0,0.25683231]
[1644193965243,0.2486428,41871.0,41867.0,0.00034904]
[1644193966043,0.330697,41870.0,41867.0,0.00034904]
[1644193966247,0.330697,41870.0,41863.0,0.36806137]
[1644193966444,0.2486428,41871.0,41867.0,0.00053369]
[1644193966746,0.330697,41870.0,41867.0,0.00053369]
[1644193967543,0.56226653,41871.0,41861.0,0.26742715]
[1644193967743,0.330697,41870.0,41866.0,0.00051144]
[1644193968590,0.330697,41870.0,41861.0,0.07182852]
[1644193968591,0.33041814,41870.0,41861.0,0.07182852]
[1644193968790,0.56226653,41871.0,41866.0,0.00032679]
[1644193968992,0.330658,41870.0,41866.0,0.00032679]
[1644193969793,0.1,41875.0,41866.0,0.05]
[1644193969996,0.1,41875.0,41866.0,0.05032679]
[1644193969997,0.15,41875.0,41866.0,0.05032679]
[1644193970196,0.15,41875.0,41871.0,0.08986429]
[1644193970396,0.05,41875.0,41871.0,0.08986429]
[1644193970596,0.2398194,41875.0,41873.0,0.24327524]
[1644193970797,0.2398194,41875.0,41866.0,0.05032679]
[1644193970998,0.2398194,41875.0,41867.0,0.01934553]
[1644193970999,0.2386224,41875.0,41867.0,0.01934553]
[1644193971198,0.2386224,41875.0,41868.0,0.00051098]
[1644193971848,0.2386224,41875.0,41869.0,0.25769644]
[1644193972648,0.05,41876.0,41869.0,0.25769644]
[1644193973249,0.109738,41876.0,41869.0,0.25769644]
[1644193973648,0.32951299,41876.0,41869.0,0.25769644]
[1644193973948,0.42951299,41876.0,41869.0,0.25769644]
[1644193974550,0.15,41876.0,41875.0,0.07876064]
[1644193974753,0.15,41876.0,41869.0,0.25769644]
[1644193974754,0.71641,41876.0,41869.0,0.25769644]
[1644193975052,0.71641,41876.0,41874.0,0.05]
[1644193975897,0.71641,41876.0,41870.0,0.1]
[1644193975898,0.71641,41876.0,41870.0,0.05]
[1644193976396,0.71641,41876.0,41869.0,0.30769644]
[1644193976897,0.71641,41876.0,41868.0,0.05050371]
[1644193977099,0.71641,41876.0,41865.0,0.02127921]
[1644193977100,2.77530914,41874.0,41865.0,0.02127921]
[1644193977401,0.044,41873.0,41868.0,0.0005037]
[1644193978099,0.26863058,41873.0,41868.0,0.0005037]
[1644193978297,0.26863058,41873.0,41867.0,0.05]
[1644193978498,0.044,41873.0,41868.0,0.00050369]
[1644193979548,0.28134819,41873.0,41867.0,0.05]
[1644193979748,0.28134819,41873.0,41868.0,0.00047548]
[1644193980748,0.28134819,41873.0,41867.0,0.05]
[1644193980952,0.28134819,41873.0,41868.0,0.00047548]
[1644193981850,0.044,41873.0,41871.0,0.05]
[1644193982254,0.71641,41876.0,41868.0,0.31154145]
[1644193982454,0.71641,41876.0,41874.0,0.05]
[1644193983101,0.71641,41876.0,41875.0,0.30582514]
[1644193983301,0.71641,41876.0,41875.0,0.67229496]
[1644193983799,0.71141,41876.0,41875.0,0.67229496]
[1644193984098,0.71141,41876.0,41875.0,0.92115836]
[1644193985502,0.70141,41876.0,41875.0,0.05]
[1644193985802,0.70141,41876.0,41870.0,0.02126251]
[1644193986002,0.22847358,41874.0,41870.0,0.02126251]
[1644193986203,0.2771627,41873.0,41870.0,0.02126251]
[1644193987050,0.2771627,41873.0,41862.0,0.12049426]
[1644193987249,0.19125773,41867.0,41861.0,0.6877]
[1644193987451,0.0181398,41866.0,41862.0,0.330658]
[1644193988254,0.0181398,41866.0,41864.0,0.34988528]
[1644193988451,0.0181398,41866.0,41865.0,0.330658]
[1644193989253,0.01923523,41871.0,41864.0,0.34988528]
[1644193990694,0.01923523,41871.0,41867.0,0.06579391]
[1644193991096,0.00018451,41872.0,41868.0,0.330658]
[1644193991296,0.00018451,41872.0,41868.0,0.1]
[1644193991495,0.00018451,41872.0,41869.0,0.330658]
[1644193991695,0.70141,41876.0,41870.0,0.19274866]
[1644193991895,0.70141,41876.0,41872.0,0.34528623]
[1644193992095,0.70141,41876.0,41874.0,0.07500494]
[1644193992295,0.70141,41876.0,41874.0,0.12500494]
[1644193992895,0.70141,41876.0,41874.0,0.05]
[1644193993096,0.70141,41876.0,41872.0,0.54528623]
[1644193994448,0.70141,41876.0,41874.0,0.05971333]
[1644193995850,0.70141,41876.0,41875.0,0.22360102]
[1644193996051,0.70141,41876.0,41875.0,0.55425902]
[1644193996250,0.70141,41876.0,41875.0,0.60425902]
[1644193996450,0.70130695,41876.0,41875.0,0.60425902]
[1644193997253,0.02200007,41884.0,41877.0,0.059706]
[1644193997254,0.00221384,41884.0,41877.0,0.059706]
[1644193997452,0.00221384,41884.0,41878.0,0.08161599]
[1644193997656,0.00024986,41889.0,41880.0,1.2]
[1644193997858,0.00024986,41889.0,41881.0,0.305468]
[1644193997859,0.00024998,41885.0,41881.0,0.305468]
[1644193998122,0.01941486,41887.0,41882.0,0.46264411]
[1644193998323,0.00024998,41888.0,41887.0,1.28297248]
[1644193998521,0.00024986,41889.0,41887.0,1.76744855]
[1644193998721,0.00024986,41889.0,41888.0,0.330541]
[1644193998920,0.00024986,41889.0,41888.0,0.430541]
[1644194000022,0.04589406,41895.0,41889.0,1.2]
[1644194000225,0.04589406,41895.0,41890.0,0.3554]
[1644194000226,0.00016128,41895.0,41890.0,0.3554]
[1644194000427,0.00016128,41895.0,41892.0,0.330504]
[1644194000624,0.00016128,41895.0,41893.0,0.19551475]
[1644194000824,0.00016128,41895.0,41894.0,0.305369]
[1644194001024,0.00016128,41895.0,41894.0,0.38743439]
[1644194001228,0.00016128,41895.0,41894.0,0.43743439]
[1644194002249,0.00016128,41895.0,41894.0,0.355369]
[1644194003452,0.00016128,41895.0,41894.0,0.44399259]
[1644194004053,0.00016128,41895.0,41894.0,0.49399259]
[1644194004457,0.00603721,41899.0,41895.0,0.85]
[1644194004654,0.05603721,41899.0,41896.0,0.330471]
[1644194004857,0.05603721,41899.0,41888.0,0.330658]
[1644194005057,0.42617963,41899.0,41888.0,0.330658]
[1644194005255,0.42617963,41899.0,41887.0,0.330658]
[1644194005256,0.05,41892.0,41887.0,0.330658]
[1644194005703,0.26574912,41890.0,41887.0,0.330658]
[1644194005902,0.26574912,41890.0,41886.0,0.01941486]
[1644194005903,0.05,41889.0,41886.0,0.01941486]
[1644194006203,0.094,41889.0,41886.0,0.01941486]
[1644194006801,0.19705497,41888.0,41886.0,0.01941486]
[1644194007404,0.19705497,41888.0,41885.0,0.00032607]
[1644194007603,0.05,41886.0,41885.0,0.00032607]
[1644194007805,0.380658,41886.0,41876.0,5.75767601]
[1644194008009,0.19705497,41888.0,41884.0,0.00032608]
[1644194008205,0.05,41885.0,41884.0,0.00032608]
[1644194009002,0.05,41885.0,41876.0,5.75767601]
[1644194009003,0.05,41885.0,41876.0,5.80767601]
[1644194009249,0.19705497,41888.0,41882.0,0.00050769]
[1644194009447,0.05,41884.0,41882.0,0.00050769]
[1644194009648,0.23749336,41883.0,41882.0,0.00050769]
[1644194010048,0.23660358,41883.0,41882.0,0.00050769]
[1644194010248,0.23660358,41883.0,41876.0,5.75767601]
[1644194010249,0.23660358,41883.0,41877.0,0.330658]
[1644194010449,0.23660358,41883.0,41880.0,0.00048129]
[1644194010751,0.05,41881.0,41880.0,0.00048129]
[1644194011348,0.05,41881.0,41877.0,0.380658]
[1644194011549,2.16950906,41889.0,41879.0,0.305463]
[1644194011550,0.044,41889.0,41879.0,0.305463]
[1644194011750,0.044,41889.0,41879.0,0.355463]
[1644194011751,0.05,41885.0,41879.0,0.355463]
[1644194011950,0.05,41885.0,41881.0,0.39508193]
[1644194012351,0.044,41889.0,41881.0,0.44508193]
[1644194012553,0.094,41889.0,41883.0,0.21592398]
[1644194012751,0.094,41889.0,41884.0,0.330599]
[1644194013009,0.094,41889.0,41884.0,0.380599]
[1644194013401,0.094,41889.0,41885.0,0.305413]
[1644194013798,0.044,41889.0,41885.0,0.355413]
[1644194014000,0.29503877,41894.0,41885.0,0.05]
[1644194014203,0.05,41886.0,41885.0,0.00047627]
[1644194014801,0.27231461,41886.0,41885.0,0.00047627]
[1644194015198,0.24508507,41885.0,41883.0,0.00048026]
[1644194015400,0.05,41884.0,41883.0,0.00048026]
[1644194016002,0.31878288,41884.0,41883.0,0.00048026]
[1644194016206,0.36278288,41884.0,41883.0,0.00048026]
[1644194016402,0.36278288,41884.0,41876.0,5.75767601]
[1644194016403,0.059738,41882.0,41876.0,5.75767601]
[1644194016600,0.27509149,41877.0,41876.0,5.75767601]
[1644194016851,0.59378072,41877.0,41876.0,5.75767601]
[1644194017254,0.59378072,41877.0,41876.0,4.5265235]
[1644194017453,0.69378072,41877.0,41876.0,4.5265235]
[1644194017852,1.41017072,41877.0,41876.0,4.5265235]
[1644194018455,1.13048149,41877.0,41876.0,4.5265235]
[1644194018657,1.39989133,41877.0,41876.0,4.5265235]
[1644194019956,1.13048149,41877.0,41876.0,4.5265235]
[1644194020159,1.13048149,41877.0,41876.0,4.8571815]
[1644194020160,0.81039,41877.0,41876.0,4.8571815]
[1644194020358,0.76039,41877.0,41876.0,4.9071815]
[1644194021905,0.81039,41877.0,41876.0,4.9071815]
[1644194023405,0.71639,41877.0,41876.0,4.9071815]
[1644194025048,3.05e-06,41877.0,41876.0,4.9071815]
[1644194025347,0.00024997,41885.0,41879.0,0.059702]
[1644194025546,0.00024997,41889.0,41880.0,0.69324617]
[1644194025748,0.02045136,41890.0,41883.0,0.19582575]
[1644194025749,0.01570133,41890.0,41883.0,0.19582575]
[1644194025949,0.00024997,41889.0,41884.0,0.6819054]
[1644194026146,0.01545136,41890.0,41886.0,0.330566]
[1644194026350,0.00024997,41889.0,41886.0,0.330566]
[1644194026546,0.01545136,41890.0,41887.0,0.08915839]
[1644194026745,0.01545136,41890.0,41888.0,0.305407]
[1644194027146,0.01545136,41890.0,41888.0,0.355407]
[1644194027346,0.00024997,41893.0,41889.0,0.33054]
[1644194027547,0.00024997,41891.0,41888.0,0.05]
[1644194027851,0.05,41891.0,41887.0,0.05053073]
[1644194028099,0.00024997,41894.0,41887.0,0.00053073]
[1644194028301,0.05,41894.0,41885.0,0.25618529]
[1644194028503,0.22512018,41895.0,41885.0,0.25618529]
[1644194028701,0.00064512,41895.0,41885.0,0.25618529]
[1644194029101,0.05,41891.0,41885.0,0.27665268]
[1644194029300,0.05,41891.0,41886.0,0.330658]
[1644194029500,0.05,41892.0,41886.0,0.330658]
[1644194029802,0.05,41892.0,41889.0,0.07635027]
[1644194030002,0.05,41892.0,41890.0,0.305296]
[1644194030202,0.05,41892.0,41889.0,0.12635027]
[1644194031001,0.05,41892.0,41889.0,0.05]
[1644194031203,0.05,41892.0,41886.0,0.0199936]
[1644194031850,0.19011151,41895.0,41889.0,0.005]
[1644194032050,0.24573027,41888.0,41886.0,0.0199936]
[1644194032251,0.045,41887.0,41886.0,0.0199936]
[1644194035507,0.045,41887.0,41884.0,0.00037249]
[1644194035703,0.045,41887.0,41881.0,0.01948501]
[1644194036003,0.24573027,41888.0,41884.0,0.00055329]
[1644194036004,0.34057971,41886.0,41884.0,0.00055329]
[1644194036202,0.045,41885.0,41884.0,0.00055329]
[1644194036802,0.045,41885.0,41881.0,0.01948501]
[1644194037002,0.045,41885.0,41882.0,0.33121131]
[1644194037204,0.045,41888.0,41884.0,0.305382]
[1644194037405,0.045,41891.0,41887.0,0.07198581]
[1644194037806,0.045,41891.0,41887.0,0.12198581]
[1644194038005,0.045,41891.0,41888.0,0.330658]
[1644194038305,0.045,41889.0,41887.0,0.36756067]
[1644194038508,0.28832046,41897.0,41888.0,0.330658]
[1644194038709,0.045,41894.0,41887.0,0.12253908]
[1644194039111,0.045,41894.0,41888.0,0.01877149]
[1644194039360,0.045,41894.0,41888.0,0.01932475]
[1644194039859,0.28832046,41897.0,41888.0,0.01932475]
[1644194040062,0.045,41889.0,41888.0,0.01932475]
[1644194040461,0.045,41889.0,41888.0,0.01877149]
[1644194041062,0.57796247,41889.0,41888.0,0.01877149]
[1644194041564,0.24730447,41889.0,41888.0,0.01877149]
[1644194043606,0.57796247,41889.0,41883.0,0.03734756]
[1644194043808,0.045,41884.0,41883.0,0.03734756]
[1644194044006,0.089,41884.0,41883.0,0.03734756]
[1644194044510,1.09446621,41884.0,41883.0,0.03734756]
[1644194044909,1.19446621,41884.0,41883.0,0.03734756]
[1644194045806,1.52512421,41884.0,41883.0,0.03734756]
[1644194046607,1.19446621,41884.0,41883.0,0.03734756]
[1644194047072,1.19446621,41884.0,41876.0,4.10748396]
[1644194047369,0.059733,41882.0,41876.0,4.10748396]
[1644194047568,0.044,41881.0,41876.0,4.10748396]
[1644194047769,0.045,41877.0,41876.0,4.10748396]
[1644194048171,0.26521126,41877.0,41876.0,4.10748396]
[1644194049875,0.68398516,41877.0,41876.0,3.2769158]
[1644194050078,3.8998682,41877.0,41876.0,3.2769158]
[1644194050276,4.2305262,41877.0,41876.0,3.2769158]
[1644194050511,4.1805262,41877.0,41876.0,3.2769158]
[1644194050904,4.3000172,41877.0,41876.0,3.2769158]
[1644194051707,4.3000172,41877.0,41876.0,1.59703195]
[1644194051910,4.3000172,41877.0,41864.0,0.002]
[1644194051911,0.18269179,41876.0,41864.0,0.002]
[1644194052115,0.059764,41866.0,41853.0,0.25697052]
[1644194052309,0.059764,41866.0,41859.0,0.00011619]
[1644194052310,1.02583876,41865.0,41859.0,0.00011619]
[1644194052507,0.23263801,41857.0,41854.0,0.00211619]
[1644194052708,0.55398872,41855.0,41854.0,0.00211619]
[1644194052915,0.55398872,41855.0,41854.0,0.002]
[1644194052916,2.34404692,41855.0,41854.0,0.002]
[1644194053109,2.46360292,41855.0,41854.0,0.002]
[1644194054358,0.7,41853.0,41851.0,0.001]
[1644194054554,1.43243235,41852.0,41851.0,0.001]
[1644194054759,1.48243235,41852.0,41851.0,0.001]
[1644194054955,1.58243235,41852.0,41851.0,0.001]
[1644194055157,1.59220935,41852.0,41851.0,0.001]
[1644194055354,1.254505,41852.0,41851.0,0.051]
[1644194055556,0.76407,41852.0,41851.0,0.001]
[1644194055754,0.714915,41852.0,41851.0,0.001]
[1644194055953,0.714915,41852.0,41851.0,0.051]
[1644194056358,0.714915,41852.0,41851.0,0.41028948]
[1644194056753,0.714915,41852.0,41851.0,0.52636078]
[1644194056956,0.626165,41852.0,41851.0,0.52636078]
[1644194057157,0.05,41867.0,41862.0,0.0753952]
[1644194057362,0.5,41866.0,41865.0,0.05]
[1644194058103,0.20804226,41869.0,41862.0,0.05]
[1644194058302,0.21590811,41871.0,41860.0,0.36224986]
[1644194058505,0.21590811,41871.0,41861.0,0.330658]
[1644194058703,0.21590811,41871.0,41861.0,0.380658]
[1644194058903,0.21590811,41871.0,41863.0,0.00055303]
[1644194059104,0.05,41866.0,41863.0,0.00055303]
[1644194059303,0.05,41866.0,41864.0,0.330658]
[1644194059502,0.05,41866.0,41863.0,0.00055303]
[1644194059906,0.05,41866.0,41858.0,0.26356258]
[1644194060108,0.05,41866.0,41862.0,0.00055304]
[1644194060907,0.05,41863.0,41862.0,0.00055304]
[1644194061109,0.05,41863.0,41854.0,0.0201169]
[1644194061114,0.330658,41862.0,41854.0,0.0201169]
[1644194061305,0.05,41860.0,41854.0,0.0201169]
[1644194061508,0.0478,41863.0,41852.0,0.75430766]
[1644194061752,0.0478,41863.0,41852.0,0.98134016]
[1644194061753,0.25792868,41859.0,41852.0,0.98134016]
[1644194062254,0.25792868,41859.0,41852.0,0.05220766]
[1644194062457,0.25792868,41859.0,41853.0,0.00037197]
[1644194062753,0.30792868,41859.0,41853.0,0.00037197]
[1644194063155,0.40792868,41859.0,41853.0,0.00037197]
[1644194063354,0.46768968,41859.0,41853.0,0.00037197]
[1644194063653,0.46768968,41859.0,41854.0,0.00037197]
[1644194063853,0.330658,41858.0,41854.0,0.00037197]
[1644194064254,0.21281003,41857.0,41854.0,0.00037197]
[1644194064454,0.05,41855.0,41854.0,0.00037197]
[1644194064655,0.380658,41855.0,41851.0,0.001]
[1644194064855,0.330658,41854.0,41853.0,0.00052782]
[1644194065255,0.1,41855.0,41853.0,0.00052782]
[1644194065506,0.330658,41854.0,41853.0,0.00052782]
[1644194065901,0.330658,41854.0,41851.0,0.001]
[1644194066100,0.1,41855.0,41851.0,0.00152783]
[1644194066303,0.2942065,41852.0,41851.0,0.00152783]
[1644194066502,0.97946602,41852.0,41851.0,0.00152783]
[1644194066701,1.12946602,41852.0,41851.0,0.00152783]
[1644194066900,1.84628602,41852.0,41851.0,0.00043964]
[1644194067100,1.84628602,41852.0,41849.0,0.00583389]
[1644194067302,0.26739396,41850.0,41849.0,0.00583389]
[1644194067500,1.67472044,41850.0,41849.0,0.00583389]
[1644194068001,1.77472044,41850.0,41849.0,0.00583389]
[1644194068399,1.31487196,41850.0,41849.0,0.00583389]
[1644194068600,1.46487196,41850.0,41849.0,0.00583389]
[1644194069652,1.51267196,41850.0,41849.0,0.00583389]
[1644194070257,1.57245296,41850.0,41849.0,0.00583389]
[1644194071455,1.52465296,41850.0,41849.0,0.00583389]
[1644194072056,1.46487196,41850.0,41849.0,0.00583389]
[1644194074705,1.46487196,41850.0,41848.0,0.00011596]
[1644194074906,0.67542122,41849.0,41847.0,0.00366687]
[1644194075107,1.047478,41848.0,41847.0,0.00355091]
[1644194075305,1.46648819,41848.0,41847.0,0.00355091]
[1644194075508,1.46648819,41848.0,41847.0,0.003]
[1644194075705,1.197478,41848.0,41847.0,0.003]
[1644194075906,1.047478,41848.0,41847.0,0.003]
[1644194077153,0.16932387,41848.0,41847.0,0.003]
[1644194077354,0.16932387,41848.0,41847.0,0.333658]
[1644194077552,0.16932387,41848.0,41847.0,0.30898]
[1644194077751,0.16932387,41848.0,41847.0,0.053]
[1644194078155,0.16932387,41848.0,41847.0,0.003]
[1644194079053,0.54998187,41848.0,41847.0,0.003]
[1644194079251,0.83087108,41848.0,41847.0,0.003]
[1644194079454,1.09172495,41848.0,41847.0,0.003]
[1644194079654,1.24172495,41848.0,41847.0,0.003]
[1644194080055,0.91083574,41848.0,41847.0,0.003]
[1644194080253,1.183698,41848.0,41847.0,0.003]
[1644194081304,1.133698,41848.0,41847.0,0.003]
[1644194082504,0.49998187,41848.0,41844.0,0.00275212]
[1644194082703,0.49998187,41848.0,41845.0,0.00011597]
[1644194082704,0.16932387,41848.0,41845.0,0.00011597]
[1644194082903,0.16932387,41848.0,41846.0,0.330658]
[1644194083103,0.16932387,41848.0,41846.0,0.05]
[1644194083304,0.16932387,41848.0,41847.0,0.330649]
[1644194083502,0.16932387,41848.0,41847.0,0.380648]
[1644194083905,0.16932387,41848.0,41847.0,0.05]
[1644194084103,0.16932387,41848.0,41844.0,0.00011597]
[1644194084351,0.21932387,41848.0,41843.0,0.00011597]
[1644194084551,0.26352539,41847.0,41840.0,0.05431597]
[1644194084851,0.16932387,41848.0,41840.0,0.05431597]
[1644194085052,0.25911744,41847.0,41840.0,0.05431597]
[1644194085652,0.25911744,41847.0,41841.0,0.00037021]
[1644194085855,0.25911744,41847.0,41841.0,0.00048618]
[1644194086658,0.22687028,41845.0,41841.0,0.00011597]
[1644194086855,0.22687028,41845.0,41842.0,0.00054825]
[1644194087256,0.27687028,41845.0,41842.0,0.00054825]
[1644194087456,0.22687028,41845.0,41842.0,0.00054825]
[1644194087855,0.22687028,41845.0,41840.0,0.0542]
[1644194088117,0.22687028,41845.0,41841.0,0.0003698]
[1644194088917,0.26754966,41846.0,41840.0,0.0542]
[1644194089317,0.25911744,41847.0,41841.0,0.0003698]
[1644194089517,0.37910087,41848.0,41841.0,0.0003698]
[1644194089819,0.22910087,41848.0,41841.0,0.08582006]
[1644194090017,0.16932387,41848.0,41841.0,0.20535243]
[1644194090220,0.16932387,41848.0,41841.0,0.20498263]
[1644194090419,0.16932387,41848.0,41842.0,0.05036979]
[1644194090617,0.16932387,41848.0,41844.0,0.23166569]
[1644194090819,0.16932387,41848.0,41844.0,0.28166569]
[1644194091221,0.16932387,41848.0,41845.0,0.330658]
[1644194091963,0.16932387,41848.0,41845.0,0.430658]
[1644194092162,0.03629835,41855.0,41845.0,0.430658]
[1644194092163,0.03629835,41855.0,41847.0,0.11951285]
[1644194092363,0.03629835,41855.0,41848.0,0.30599]
[1644194092763,0.25460287,41854.0,41848.0,0.30599]
[1644194093064,0.25460287,41854.0,41848.0,0.36574643]
[1644194093264,0.25460287,41854.0,41847.0,0.16951285]
[1644194093265,0.25460287,41854.0,41847.0,0.05]
[1644194093465,0.25460287,41854.0,41843.0,0.00054782]
[1644194093668,0.52974646,41854.0,41843.0,0.00054782]
[1644194093864,0.53496843,41854.0,41842.0,0.11964212]
[1644194094065,0.23125007,41851.0,41842.0,0.11964212]
[1644194094265,0.059773,41850.0,41843.0,0.00054781]
[1644194094465,0.33417877,41850.0,41843.0,0.00054781]
[1644194094667,0.059773,41850.0,41843.0,0.00054781]
[1644194095064,0.059773,41850.0,41842.0,0.05]
[1644194095265,0.059773,41849.0,41843.0,0.0005478]
[1644194096202,0.059773,41849.0,41842.0,0.05]
[1644194096400,0.059773,41849.0,41843.0,0.00037025]
[1644194097399,0.059773,41849.0,41842.0,0.2546734]
[1644194097599,0.059773,41849.0,41843.0,0.33102778]
[1644194097998,0.059773,41849.0,41843.0,0.33114355]
[1644194098601,0.059773,41849.0,41843.0,0.53544717]
[1644194098902,0.059773,41849.0,41843.0,0.00048555]
[1644194099354,0.059773,41849.0,41843.0,0.08466868]
[1644194099554,0.059773,41850.0,41844.0,0.330658]
[1644194099754,0.059773,41850.0,41844.0,0.38077377]
[1644194100155,0.059773,41850.0,41844.0,0.05011577]
[1644194100355,0.059769,41853.0,41844.0,0.00011577]
[1644194100555,0.059769,41853.0,41843.0,0.25522122]
[1644194100758,0.059769,41853.0,41843.0,0.05054782]
[1644194101057,0.059769,41853.0,41846.0,0.23163975]
[1644194101259,0.059769,41853.0,41846.0,0.28163975]
[1644194101658,0.059769,41853.0,41846.0,0.36250948]
[1644194101857,0.059769,41853.0,41846.0,0.28163975]
[1644194104802,0.054769,41853.0,41846.0,0.28163975]
[1644194105100,0.054769,41853.0,41846.0,0.48631315]
[1644194106503,0.054769,41853.0,41848.0,0.305971]
[1644194106750,0.054769,41853.0,41848.0,0.355971]
[1644194107153,0.119531,41860.0,41850.0,0.7]
[1644194107355,0.5,41858.0,41850.0,0.75]
[1644194107554,0.5,41858.0,41850.0,0.04511577]
[1644194107755,0.5,41858.0,41849.0,0.00011577]
[1644194107953,0.30986468,41855.0,41847.0,0.2046734]
[1644194108353,0.30986468,41855.0,41850.0,0.08079075]
[1644194108853,0.30486468,41855.0,41850.0,0.08090652]
[1644194109056,0.30486468,41855.0,41850.0,0.00011577]
[1644194109254,0.30486468,41855.0,41849.0,0.31368214]
[1644194109853,0.30486468,41855.0,41849.0,0.00011577]
[1644194110055,0.30486468,41855.0,41848.0,0.05988056]
[1644194110256,0.05977,41854.0,41848.0,0.00011577]
[1644194110509,0.05977,41854.0,41847.0,0.2546734]
[1644194110510,0.05977,41854.0,41847.0,0.05]
[1644194110704,0.05977,41854.0,41850.0,0.23563468]
[1644194111105,0.05977,41854.0,41850.0,0.28563468]
[1644194111308,0.054768,41855.0,41851.0,0.330658]
[1644194111505,0.054768,41855.0,41850.0,0.28563468]
[1644194112510,0.054768,41855.0,41850.0,0.05]
[1644194112707,0.05,41852.0,41849.0,0.00011577]
[1644194112907,0.330658,41850.0,41848.0,0.00011577]
[1644194113109,0.330658,41850.0,41844.0,0.00011577]
[1644194113110,0.330658,41848.0,41844.0,0.00011577]
[1644194113308,0.330658,41848.0,41840.0,0.02244402]
[1644194113309,0.05,41845.0,41843.0,0.0208998]
[1644194113507,1.84500285,41844.0,41843.0,0.0208998]
[1644194113809,2.31465101,41844.0,41843.0,0.0208998]
[1644194114008,1.56973889,41844.0,41843.0,0.01840677]
[1644194114261,1.741498,41844.0,41843.0,0.01840677]
[1644194114456,1.741498,41844.0,41843.0,0.00249304]
[1644194114856,1.75741173,41844.0,41843.0,0.00010677]
[1644194117458,1.70741173,41844.0,41843.0,0.00010677]
[1644194118306,1.20741173,41844.0,41843.0,0.00010677]
[1644194118606,1.46780712,41844.0,41843.0,0.00010677]
[1644194119206,1.51780712,41844.0,41843.0,0.00010677]
[1644194119607,0.330658,41843.0,41842.0,0.00011577]
[1644194119806,0.330658,41843.0,41841.0,0.00054657]
[1644194119807,1.207279,41843.0,41841.0,0.00066234]
[1644194120008,0.05,41842.0,41841.0,0.00054657]
[1644194120210,0.430658,41842.0,41841.0,0.00054657]
[1644194120410,0.530658,41842.0,41840.0,0.00431577]
[1644194120610,0.590439,41842.0,41840.0,0.0042]
[1644194120809,0.544291,41842.0,41840.0,0.0042]
[1644194121010,0.2709057,41841.0,41840.0,0.0042]
[1644194121212,0.544291,41842.0,41840.0,0.0042]
[1644194121409,0.85955917,41842.0,41838.0,0.03988731]
[1644194121609,0.330658,41841.0,41838.0,0.03988731]
[1644194121856,0.430658,41841.0,41839.0,0.00053848]
[1644194122058,0.05,41840.0,41839.0,0.00053848]
[1644194122256,0.380658,41840.0,41839.0,0.00053848]
[1644194122855,0.380658,41840.0,41838.0,0.002]
[1644194123055,0.330658,41839.0,41838.0,0.002]
[1644194123856,0.59993633,41839.0,41838.0,0.002]
[1644194124456,0.330658,41839.0,41838.0,0.002]
[1644194124857,0.60534281,41839.0,41838.0,0.002]
[1644194125057,0.330658,41839.0,41838.0,0.002]
[1644194125513,0.330658,41839.0,41837.0,0.157]
[1644194125906,0.71684,41838.0,41837.0,0.157]
[1644194126106,1.31711338,41838.0,41837.0,0.157]